bitfinex/quotes_ETHUSD_20241120
["timestamp","ask_amount","ask_price","bid_price","bid_amount"]
[1732121384282,0.04059353,3081.0,3079.0,0.8634]
[1732121384537,0.07373363,3081.0,3079.3,0.01]
[1732121385399,0.0405893,3080.9,3079.7,3.0]
[1732121385618,0.0736872,3080.9,3079.7,3.3]
[1732121386003,0.0736872,3080.9,3079.7,0.3]
[1732121386220,0.0736872,3080.9,3079.4,0.8634]
[1732121386388,0.0736872,3080.9,3079.2,0.55]
[1732121386389,0.0330979,3080.9,3079.2,0.55]
[1732121386718,0.0330979,3080.9,3079.1,0.8734]
[1732121386719,0.0405902,3080.8,3079.1,0.8734]
[1732121387027,0.07361353,3080.8,3079.1,0.8734]
[1732121387176,0.07361353,3080.8,3079.4,0.01]
[1732121387621,0.03302333,3080.8,3079.2,0.01]
[1732121387823,0.55,3081.3,3079.2,0.56]
[1732121387981,0.04058907,3081.2,3079.2,0.56]
[1732121388184,0.07377966,3081.2,3079.2,0.56]
[1732121388681,0.07377966,3081.2,3079.4,0.01]
[1732121388882,0.07377966,3081.2,3079.6,3.0]
[1732121389084,0.07377966,3081.2,3079.7,0.3]
[1732121389582,0.07377966,3081.2,3079.8,0.3236]
[1732121390687,0.07377966,3081.2,3079.3,0.3236]
[1732121391124,0.07377966,3081.2,3079.7,0.3236]
[1732121391329,0.38115763,3081.2,3079.6,3.0]
[1732121391555,0.55,3081.1,3079.6,3.0]
[1732121391740,3.24591,3080.8,3078.8,3.0]
[1732121392045,3.55,3080.9,3078.8,0.534]
[1732121392046,3.06809195,3080.7,3078.8,0.534]
[1732121392356,3.06809195,3080.7,3078.9,0.3236]
[1732121392357,0.30680919,3080.6,3078.9,0.3236]
[1732121392659,0.03560242,3080.5,3078.7,5.34]
[1732121393150,0.55,3080.4,3078.3,0.9069]
[1732121393306,0.03560242,3080.3,3078.4,0.3236]
[1732121393507,0.03560242,3080.3,3078.0,0.9208]
[1732121393508,0.55,3080.2,3078.5,0.3236]
[1732121393744,0.42870145,3080.1,3078.5,0.3236]
[1732121394360,3.0,3079.9,3078.5,0.3236]
[1732121394505,3.24713,3079.7,3077.7,0.3336]
[1732121394864,0.39234044,3079.6,3077.7,0.01]
[1732121395351,0.39234044,3079.6,3077.3,0.9178]
[1732121395352,3.0,3079.4,3077.3,0.9178]
[1732121395556,0.61977915,3079.3,3077.3,0.9178]
[1732121395708,0.61977915,3079.3,3077.3,0.95029224]
[1732121395905,0.61977915,3079.3,3077.3,0.01]
[1732121396510,0.61977915,3079.3,3077.7,3.0]
[1732121396782,0.36197792,3079.2,3077.3,0.0424924]
[1732121396910,0.03560242,3079.2,3077.7,3.0]
[1732121397104,0.03560242,3079.2,3077.6,0.01]
[1732121397407,0.03560242,3079.2,3077.7,3.0]
[1732121397408,0.03408618,3079.1,3077.7,3.0]
[1732121397613,0.03560242,3079.0,3077.8,0.301]
[1732121397817,0.03560242,3079.0,3077.7,3.0]
[1732121398345,0.55,3079.5,3077.4,0.01]
[1732121398509,0.55,3079.3,3077.8,3.0]
[1732121398714,0.06965774,3079.2,3077.8,3.0]
[1732121399161,0.03405532,3079.2,3077.8,3.3]
[1732121399362,0.03560242,3079.6,3077.9,3.0]
[1732121399606,0.03419301,3079.5,3078.0,0.33]
[1732121399813,0.03419301,3079.5,3077.8,0.01]
[1732121399814,0.03560242,3079.4,3077.8,0.8966]
[1732121400297,0.03182898,3079.3,3077.8,0.8966]
[1732121400610,0.03182898,3079.3,3078.2,0.01]
[1732121400752,0.03182898,3079.3,3077.9,0.58248588]
[1732121400753,0.03182898,3079.3,3078.9,0.01]
[1732121400949,5.03560242,3080.0,3079.1,3.0]
[1732121400950,0.03560242,3079.9,3079.1,3.0]
[1732121401155,0.0320402,3079.8,3079.1,3.0]
[1732121401399,0.03560242,3079.8,3079.1,3.301]
[1732121401710,0.03560242,3079.8,3078.4,0.01]
[1732121401711,0.03199796,3079.7,3078.4,0.01]
[1732121401852,0.03199796,3079.7,3078.0,0.62533223]
[1732121401853,0.03560242,3079.6,3078.0,0.19040165]
[1732121402050,0.03560242,3079.6,3077.7,0.61292331]
[1732121402351,0.03560242,3079.6,3077.7,0.44493058]
[1732121402602,0.03560242,3079.6,3077.7,0.01]
[1732121402899,0.58560242,3079.8,3077.5,0.01]
[1732121403049,0.03191348,3079.5,3077.7,0.01]
[1732121403368,0.03560242,3079.7,3078.1,0.01]
[1732121403369,0.06975017,3079.4,3078.1,0.01]
[1732121403568,0.06975017,3079.4,3078.1,0.03248391]
[1732121403899,0.06975017,3079.4,3077.6,0.9545]
[1732121404265,0.06975017,3079.4,3078.2,3.0]
[1732121404477,0.06975017,3079.4,3077.6,0.9545]
[1732121404684,0.06975017,3079.4,3077.7,0.3236]
[1732121404896,0.06975017,3079.4,3078.2,3.0]
[1732121405051,0.06975017,3079.4,3077.7,0.3236]
[1732121405254,0.55,3079.3,3077.7,0.3236]
[1732121405453,0.55,3079.1,3077.7,0.3236]
[1732121405756,0.55,3079.1,3077.2,0.01]
[1732121405757,0.55,3078.9,3077.2,0.3236]
[1732121406081,0.07208437,3078.8,3077.2,0.3236]
[1732121406457,0.07208437,3078.8,3077.4,0.01]
[1732121406458,0.03560242,3078.7,3077.4,0.01]
[1732121406754,0.03560242,3078.7,3077.5,0.3236]
[1732121407095,0.03560242,3078.7,3077.3,0.03249617]
[1732121407096,3.55,3079.0,3077.3,0.3236]
[1732121407394,0.55,3078.8,3077.3,0.3236]
[1732121407594,0.55,3078.8,3076.9,0.01]
[1732121407595,0.03560242,3078.7,3076.9,0.36609696]
[1732121407892,0.07705967,3078.7,3077.1,0.01]
[1732121408207,0.07705967,3078.7,3076.9,0.3336]
[1732121408378,0.07705967,3078.7,3077.1,0.3236]
[1732121408708,0.07705967,3078.7,3077.3,3.3236]
[1732121408994,0.07705967,3078.7,3077.3,0.3236]
[1732121409199,0.38476564,3078.7,3077.3,0.3236]
[1732121409493,0.38476564,3078.7,3077.3,3.3236]
[1732121409697,0.38476564,3078.7,3077.0,0.16878277]
[1732121409915,0.38476564,3078.7,3076.9,0.01]
[1732121410048,0.07705967,3078.7,3077.3,3.0]
[1732121410253,0.07705967,3078.7,3077.1,0.01]
[1732121410254,0.04145725,3078.7,3077.4,3.0]
[1732121410451,0.04145725,3078.7,3077.4,0.01]
[1732121410683,0.03560242,3079.2,3077.4,0.01]
[1732121410866,0.33916266,3079.2,3077.4,0.01]
[1732121411195,0.03821429,3079.1,3077.4,0.01]
[1732121411405,0.03560242,3079.0,3077.4,0.0424913]
[1732121411717,0.16463746,3079.7,3077.6,0.01]
[1732121412002,0.03811361,3078.9,3077.8,0.01]
[1732121412295,0.03560242,3079.6,3077.8,0.01]
[1732121412497,0.03560242,3079.6,3077.3,3.47421727]
[1732121412498,0.03560242,3079.6,3077.3,1.78451802]
[1732121412712,3.24747,3079.4,3077.3,0.01]
[1732121412907,0.03560242,3079.3,3077.3,0.01]
[1732121413197,3.07393254,3079.3,3077.1,0.16836624]
[1732121413400,0.63214025,3079.2,3077.4,0.01]
[1732121413551,0.63214025,3079.2,3077.1,0.16836624]
[1732121413552,0.03560242,3079.1,3077.1,0.01]
[1732121413750,0.045806,3079.0,3077.2,0.1892788]
[1732121413996,0.03560242,3078.9,3077.6,0.01]
[1732121414369,0.03560242,3078.9,3077.3,3.55]
[1732121414572,0.60457709,3078.8,3076.8,0.01]
[1732121414768,0.55,3078.6,3076.8,0.01]
[1732121414981,0.03560242,3078.5,3076.8,0.01]
[1732121415319,0.03560242,3078.5,3076.4,0.01]
[1732121415320,3.79851,3078.4,3076.4,0.01]
[1732121415523,3.79851,3078.4,3076.2,1.34278802]
[1732121415524,0.55,3078.2,3076.2,1.34278802]
[1732121415659,0.03560242,3078.1,3076.2,0.17966839]
[1732121415860,0.08962466,3078.1,3076.2,0.42121403]
[1732121416073,0.03560242,3078.1,3076.2,0.42121403]
[1732121416357,0.04795062,3078.0,3076.2,0.42121403]
[1732121416587,0.04795062,3078.0,3076.2,0.17966839]
[1732121416588,0.03560242,3077.9,3076.2,0.17966839]
[1732121417098,0.05378586,3077.8,3076.2,0.17966839]
[1732121417313,0.05378586,3077.8,3076.8,0.01]
[1732121417604,0.05367756,3077.7,3077.0,0.01]
[1732121417818,0.05367756,3077.7,3077.0,0.04249396]
[1732121418031,0.03560242,3078.5,3077.0,0.01]
[1732121418191,0.17064244,3079.3,3077.6,3.0]
[1732121418192,0.03560242,3079.1,3077.6,3.0]
[1732121418366,0.03560242,3079.1,3077.1,0.03249543]
[1732121418686,3.28332242,3079.1,3077.0,0.01]
[1732121418869,0.41111183,3079.0,3077.6,3.0]
[1732121419074,0.04861076,3079.0,3077.5,0.01]
[1732121419271,0.03560242,3078.9,3077.5,0.01]
[1732121419581,3.24703,3079.8,3077.8,3.01]
[1732121419582,0.03560242,3079.7,3077.8,3.01]
[1732121419785,0.04904412,3079.6,3077.8,0.01]
[1732121419969,0.04904412,3079.6,3077.8,3.01]
[1732121419970,0.03560242,3079.5,3077.8,3.01]
[1732121420167,0.0489033,3079.4,3077.8,0.01]
[1732121420368,0.0489033,3079.4,3077.6,0.9341]
[1732121420369,0.03560242,3079.3,3077.6,0.9441]
[1732121420614,0.0487933,3079.2,3077.9,0.01]
[1732121420782,0.03560242,3079.1,3077.9,0.01]
[1732121420990,0.03560242,3079.9,3078.4,3.0]
[1732121421184,0.5168157,3079.9,3078.9,0.01]
[1732121421518,0.03560242,3079.9,3078.7,0.01]
[1732121421700,0.03560242,3079.9,3078.9,3.0]
[1732121422106,0.03560242,3079.9,3078.9,0.01]
[1732121422275,0.03560242,3079.9,3079.2,0.01]
[1732121422611,5.0,3080.0,3079.2,0.01]
[1732121422612,5.0,3080.0,3079.9,0.01]
[1732121423602,5.0,3080.0,3079.6,0.55]
[1732121423603,5.0,3080.0,3079.7,0.01]
[1732121423776,5.0,3080.0,3079.9,0.01]
[1732121424812,0.03560242,3082.4,3079.9,1.5055]
[1732121425022,12.20352,3083.1,3080.9,3.0]
[1732121425187,0.33517491,3083.4,3081.0,3.03245504]
[1732121425188,0.04353702,3082.3,3081.0,3.03245504]
[1732121425388,0.03560242,3083.0,3081.0,0.01]
[1732121425591,0.04879608,3082.9,3081.0,0.01]
[1732121425788,0.03560242,3082.8,3081.0,0.01]
[1732121426111,0.05473751,3082.7,3080.8,0.01]
[1732121426316,0.03560242,3082.6,3081.0,3.0]
[1732121426473,0.03560242,3082.6,3080.6,0.01]
[1732121426678,0.03560242,3082.6,3080.6,0.04245773]
[1732121426679,0.0545794,3082.5,3080.6,0.04245773]
[1732121426985,0.03560242,3082.4,3080.6,0.04245773]
[1732121427187,0.05442128,3082.3,3080.6,0.01]
[1732121427411,0.03560242,3082.2,3080.4,0.01]
[1732121427615,0.40237111,3082.2,3080.6,0.01]
[1732121427918,0.05426313,3082.1,3080.6,0.01]
[1732121428213,0.03560242,3082.0,3081.0,3.0]
[1732121428424,0.05426313,3082.1,3081.0,3.0]
[1732121428425,0.05426313,3082.1,3081.1,3.0]
[1732121428717,0.03560242,3082.6,3081.5,3.0]
[1732121428886,0.03560242,3083.3,3081.4,0.01]
[1732121429263,3.24355,3083.1,3081.5,3.0]
[1732121429482,3.24355,3083.1,3081.1,0.8932]
[1732121429483,3.27929242,3083.0,3081.1,0.8932]
[1732121429623,0.44651246,3083.0,3081.3,0.01]
[1732121429972,0.55,3082.9,3081.3,0.01]
[1732121430135,0.55,3082.7,3081.3,0.01]
[1732121430340,0.55,3082.7,3080.6,0.9424]
[1732121430341,0.55,3082.5,3080.6,0.9424]
[1732121430543,0.55,3082.3,3080.6,0.9424]
[1732121430725,0.55,3082.1,3080.4,0.01]
[1732121431074,0.55,3081.9,3080.4,0.01]
[1732121431239,0.03560242,3081.8,3080.4,0.01]
[1732121431564,0.03560242,3081.8,3080.0,0.17158849]
[1732121431565,0.55,3081.7,3080.0,0.01]
[1732121431731,0.55,3081.5,3080.3,0.01]
[1732121431936,0.03560242,3081.4,3080.3,0.01]
[1732121432235,0.08931188,3081.4,3080.1,0.01]
[1732121432436,0.08931188,3081.4,3080.3,0.01]
[1732121432833,0.55,3081.3,3079.8,0.929]
[1732121433070,0.03560242,3081.2,3080.2,0.01]
[1732121433384,0.03560242,3082.0,3080.2,0.01]
[1732121433584,0.03560242,3082.0,3079.8,0.919]
[1732121433585,0.60410497,3081.9,3080.3,0.01]
[1732121433907,0.55,3081.7,3080.3,0.01]
[1732121434057,0.03560242,3081.6,3080.3,0.01]
[1732121434259,0.08956504,3081.6,3080.3,0.01]
[1732121434472,0.03560242,3081.6,3080.3,0.01]
[1732121434660,0.05388351,3081.5,3080.3,0.01]
[1732121434862,0.05388351,3081.5,3079.9,0.3237]
[1732121434863,0.03560242,3081.4,3080.1,0.01]
[1732121435303,0.05372529,3081.3,3080.3,3.0]
[1732121435600,0.08932771,3081.3,3080.3,3.0]
[1732121435997,0.08932771,3081.3,3079.8,0.919]
[1732121435998,0.55,3081.2,3079.6,0.01]
[1732121436200,0.55,3081.2,3079.6,0.04246728]
[1732121436201,0.03560242,3081.1,3079.6,0.04246728]
[1732121436411,0.08321756,3081.1,3079.6,0.01]
[1732121436762,0.08321756,3081.1,3080.0,3.0]
[1732121437076,3.79571,3081.0,3079.3,0.01]
[1732121437259,0.55,3080.8,3079.3,0.01]
[1732121437466,0.03560242,3080.7,3079.3,0.01]
[1732121437718,0.08293618,3080.7,3079.0,0.8575]
[1732121437867,0.08293618,3080.7,3078.9,0.01]
[1732121437868,0.55,3080.6,3078.9,0.01]
[1732121438212,0.03560242,3080.5,3079.1,0.01]
[1732121438902,0.03560242,3080.5,3079.3,0.01]
[1732121439229,0.01,3081.8,3078.7,0.35617335]
[1732121439230,0.55,3081.1,3079.5,0.01]
[1732121439414,0.03560242,3081.0,3079.2,0.3337]
[1732121439621,3.0,3080.8,3079.1,0.01]
[1732121439765,0.55,3080.6,3079.0,0.01]
[1732121439965,0.03560242,3080.5,3079.0,0.01]
[1732121440286,3.79633,3080.4,3078.5,0.8892]
[1732121440506,3.79661,3080.2,3078.5,0.01]
[1732121440698,0.55,3080.0,3078.5,0.01]
[1732121440878,0.03560242,3079.9,3078.3,0.01]
[1732121441076,0.03560242,3079.9,3078.1,0.8892]
[1732121441077,0.55,3079.8,3078.1,0.8992]
[1732121441284,0.03560242,3079.7,3078.1,0.8992]
[1732121441491,0.55,3079.6,3078.1,0.01]
[1732121441714,0.55,3079.4,3077.9,0.01]
[1732121441899,0.55,3079.2,3077.7,0.01]
[1732121442111,0.03560242,3079.1,3077.7,0.01]
[1732121442307,0.03560242,3079.1,3077.7,0.04248774]
[1732121443087,3.2468,3080.0,3078.1,0.01]
[1732121443289,3.0,3079.7,3077.6,0.01]
[1732121443491,4.51247842,3079.6,3077.9,0.01]
[1732121443690,1.26529842,3079.6,3077.9,0.01]
[1732121444197,4.51247842,3079.6,3077.7,0.01]
[1732121444399,0.55,3079.4,3077.7,0.01]
[1732121444736,0.03560242,3079.3,3078.0,3.0]
[1732121445523,0.03560242,3079.3,3077.3,1.06585038]
[1732121445524,3.24751,3079.3,3077.3,1.06585038]
[1732121445694,0.36035342,3079.2,3077.6,0.01]
[1732121445882,0.36035342,3079.2,3077.3,0.9003]
[1732121445883,0.03560242,3079.2,3077.4,0.01]
[1732121446082,0.30356024,3079.1,3077.4,0.01]
[1732121446442,0.30356024,3079.1,3077.1,0.01]
[1732121446443,0.55,3078.9,3077.1,0.01]
[1732121446727,0.03560242,3078.8,3077.1,0.01]
[1732121446882,0.03560242,3078.8,3077.3,0.01]
[1732121447085,0.03560242,3078.8,3077.0,0.03249413]
[1732121447086,0.03560242,3079.0,3077.4,0.01]
[1732121447625,0.03560242,3079.0,3077.8,0.9058]
[1732121447929,0.03560242,3079.7,3078.2,0.01]
[1732121448094,0.03560242,3079.7,3078.2,0.311]
[1732121448287,0.03560242,3079.7,3078.2,0.01]
[1732121448823,0.04560242,3080.4,3078.2,0.01]
[1732121449038,0.03560242,3080.4,3078.5,3.01]
[1732121449322,3.2465,3080.3,3078.6,0.301]
[1732121449636,3.2465,3080.3,3077.8,0.9058]
[1732121449637,0.03560242,3080.2,3077.8,0.9058]
[1732121449848,3.24747,3079.4,3077.4,0.8694]
[1732121450137,0.36034942,3079.3,3077.4,0.8694]
[1732121450288,0.55,3079.2,3077.1,0.8694]
[1732121450621,0.55,3079.0,3077.2,0.03249352]
[1732121450824,0.03560242,3078.9,3077.2,0.03249352]
[1732121451195,0.03560242,3078.9,3077.1,0.8694]
[1732121451610,0.03560242,3078.9,3077.2,0.03249349]
[1732121452144,3.03560242,3078.9,3077.1,0.8694]
[1732121452433,0.35856024,3078.8,3077.2,0.03249347]
[1732121452589,0.03560242,3078.7,3077.2,0.03249347]
[1732121452905,0.03560242,3078.7,3077.1,0.8694]
[1732121453493,3.0,3079.6,3077.5,3.01]
[1732121453716,3.0,3079.4,3077.5,0.01]
[1732121453939,0.69800684,3079.3,3077.5,0.01]
[1732121454145,0.69800684,3079.3,3077.5,3.01]
[1732121454559,0.03560242,3079.3,3077.5,3.01]
[1732121454844,0.03560242,3079.4,3077.7,3.0]
[1732121455074,0.03560242,3079.4,3077.8,0.38844]
[1732121455195,3.24772,3079.1,3077.3,0.8844]
[1732121455399,3.24808,3078.8,3077.0,0.8844]
[1732121455613,0.58560242,3078.7,3077.0,0.8844]
[1732121455815,6.83372242,3078.7,3076.7,1.42264887]
[1732121456047,0.55,3078.5,3076.7,1.42264887]
[1732121456319,0.03560242,3078.4,3076.8,0.04249917]
[1732121456524,0.03560242,3078.4,3077.1,0.01]
[1732121456751,0.324772,3079.0,3077.1,0.01]
[1732121456752,0.58560242,3078.9,3077.1,0.01]
[1732121456947,0.91807962,3078.9,3077.1,0.01]
[1732121457645,0.91807962,3078.9,3076.8,0.01]
[1732121457856,7.16599962,3078.9,3076.8,0.01]
[1732121458071,3.55,3078.7,3076.8,0.01]
[1732121458269,0.03560242,3078.6,3076.8,0.01]
[1732121458626,0.55,3078.5,3076.8,0.01]
[1732121458867,0.03560242,3078.4,3076.7,1.42264887]
[1732121459048,3.55,3078.3,3076.4,0.888]
[1732121459369,0.03560242,3078.2,3076.4,0.888]
[1732121459863,0.55,3078.1,3076.4,0.878]
[1732121460067,0.03560242,3078.0,3076.4,0.878]
[1732121460285,0.55,3077.9,3076.0,0.9573]
[1732121460572,0.55,3077.9,3076.0,0.9473]
[1732121460573,0.55,3077.7,3076.0,0.9473]
[1732121460869,0.35856024,3077.6,3076.5,0.01]
[1732121461055,0.03560242,3077.5,3076.5,0.01]
[1732121461259,0.03560242,3078.2,3076.6,0.9251]
[1732121461426,0.03560242,3078.2,3076.8,0.01]
[1732121461753,0.03560242,3078.7,3076.9,3.0]
[1732121461956,1.07815131,3078.7,3076.9,0.30424991]
[1732121462160,1.07815131,3078.7,3076.8,0.01]
[1732121462544,0.03560242,3078.7,3076.8,0.01]
[1732121462876,8.96,3079.3,3077.0,0.01]
[1732121462877,0.55,3079.0,3077.0,0.01]
[1732121463094,0.55,3078.8,3077.0,0.01]
[1732121463237,0.03560242,3078.7,3077.0,0.01]
[1732121463689,0.03560242,3078.7,3077.2,3.0]
[1732121463838,0.03560242,3078.7,3077.2,0.301]
[1732121464039,0.03560242,3078.7,3077.2,3.0]
[1732121464383,0.55,3078.8,3077.0,0.01]
[1732121464585,0.03560242,3078.7,3077.2,3.0]
[1732121464747,0.03560242,3078.7,3077.0,0.01]
[1732121464748,0.55,3078.6,3077.0,0.01]
[1732121464950,0.03560242,3078.5,3077.1,3.0]
[1732121465333,0.03560242,3078.5,3077.0,0.01]
[1732121465541,0.0785,3078.5,3077.3,3.8106]
[1732121465786,0.03560242,3078.4,3077.5,3.0]
[1732121465933,0.0785,3078.5,3077.3,0.8106]
[1732121466138,0.0785,3078.5,3077.3,3.0]
[1732121466634,0.0785,3078.5,3076.8,0.41957183]
[1732121466840,0.0785,3078.5,3076.9,0.0324954]
[1732121467136,0.0785,3078.5,3077.0,0.55]
[1732121467338,0.0785,3078.5,3076.9,0.0324954]
[1732121467565,0.1655779,3079.1,3076.9,0.03249596]
[1732121467566,0.0785,3078.3,3076.9,0.03249596]
[1732121467764,0.0785,3078.3,3076.8,0.55]
[1732121467984,0.0785,3078.3,3076.9,0.0324934]
[1732121468470,0.03560242,3079.0,3077.0,1.29327183]
[1732121468671,0.0785,3078.9,3077.2,0.8562]
[1732121468841,0.0785,3078.9,3077.8,3.0]
[1732121469053,0.0785,3078.9,3078.0,0.8562]
[1732121470063,0.0785,3078.9,3077.8,3.0]
[1732121470344,0.0785,3078.9,3077.2,0.8562]
[1732121470600,0.0785,3078.9,3077.8,3.0]
[1732121470742,0.0785,3078.9,3077.2,1.02187869]
[1732121470944,0.0785,3079.8,3078.0,0.8847]
[1732121471178,0.03560242,3079.7,3078.0,0.8847]
[1732121471882,0.0785,3079.6,3078.0,0.8847]
[1732121472186,0.0785,3079.4,3077.5,0.8968]
[1732121472354,0.0785,3079.2,3077.5,1.34148]
[1732121472541,0.0785,3079.2,3077.6,0.03248887]
[1732121472542,0.03560242,3079.1,3077.6,0.03248887]
[1732121472749,0.03560242,3079.1,3077.6,0.4520607]
[1732121473150,0.0785,3079.2,3077.6,0.78485376]
[1732121473356,0.0785,3079.2,3077.7,0.41957183]
[1732121473559,0.0785,3079.2,3078.0,0.55]
[1732121473783,0.0785,3079.2,3078.0,0.96957183]
[1732121473944,0.0785,3079.2,3078.0,0.1895653]
[1732121474139,0.0785,3079.2,3077.9,0.8936]
[1732121475280,0.0785,3079.2,3078.3,3.0]
[1732121475602,0.0785,3080.0,3078.5,0.8936]
[1732121475790,0.03560242,3079.9,3078.5,0.8936]
[1732121476109,0.03560242,3079.9,3078.6,3.03248006]
[1732121476276,0.0785,3080.0,3078.8,3.0]
[1732121476479,0.0785,3080.0,3078.9,0.0324759]
[1732121476780,0.0785,3080.0,3078.8,3.0]
[1732121476781,0.0785,3080.0,3078.8,1.4265]
[1732121477085,0.0785,3080.0,3079.2,3.0]
[1732121477309,0.0785,3080.0,3079.2,0.3]
[1732121477581,0.0785,3080.0,3078.8,1.45897256]
[1732121477787,0.16518394,3081.1,3078.8,1.45897256]
[1732121477788,0.0785,3080.3,3078.8,1.45897256]
[1732121478017,0.0785,3080.3,3079.1,0.9396]
[1732121478233,0.0785,3080.3,3079.4,3.0]
[1732121478415,0.03560242,3081.0,3079.5,0.3]
[1732121478416,0.0785,3080.9,3079.5,0.3]
[1732121478622,0.0785,3080.9,3079.8,0.55]
[1732121478820,0.0785,3080.9,3079.8,0.58246188]
[1732121479026,0.0785,3081.3,3080.0,0.9396]
[1732121479248,0.0785,3081.3,3080.4,3.0]
[1732121479421,0.0785,3081.3,3080.5,0.03245687]
[1732121479638,0.03560242,3082.5,3080.6,0.8974]
[1732121479639,0.0785,3082.4,3080.6,0.8974]
[1732121479940,0.0785,3082.2,3080.6,0.8974]
[1732121480237,0.03560242,3082.1,3080.6,0.8974]
[1732121480561,0.03560242,3082.1,3080.7,0.03245481]
[1732121480846,0.03560242,3082.1,3080.7,0.0324548]
[1732121481017,0.0785,3082.2,3080.8,0.55]
[1732121481347,0.0785,3082.2,3081.3,3.8974]
[1732121481570,0.0785,3082.2,3081.3,1.28714]
[1732121481890,0.0785,3083.1,3081.4,1.36730125]
[1732121482208,0.0785,3083.1,3081.6,0.55]
[1732121482409,0.0785,3083.1,3082.0,0.55]
[1732121482606,0.0785,3083.1,3082.4,3.0]
[1732121482807,0.0785,3083.1,3082.0,3.0]
[1732121483002,0.0785,3083.1,3081.5,0.8649]
[1732121483242,0.0785,3083.1,3081.6,0.58244298]
[1732121483444,0.0785,3083.1,3081.5,0.89734298]
[1732121484257,0.0785,3083.1,3081.6,0.55]
[1732121484473,0.0785,3083.1,3081.8,0.55]
[1732121484605,8.96,3084.3,3081.8,0.55]
[1732121484606,0.0785,3084.1,3082.1,0.8649]
[1732121484807,0.0785,3083.9,3082.4,3.0]
[1732121485107,0.03560242,3083.8,3082.2,0.55]
[1732121485346,0.03560242,3083.8,3082.3,0.03243487]
[1732121485707,0.03560242,3083.8,3082.4,3.0]
[1732121485948,0.03560242,3083.8,3082.3,0.03243487]
[1732121485949,0.0785,3083.9,3082.3,0.03243487]
[1732121486122,0.0785,3083.9,3082.4,3.0]
[1732121486317,0.0785,3083.9,3082.3,0.03243487]
[1732121486640,0.0785,3083.9,3082.4,3.0]
[1732121486950,0.0785,3083.9,3082.3,0.03243487]
[1732121487358,0.0785,3083.9,3082.4,3.0]
[1732121488237,0.0785,3083.9,3082.5,0.58243437]
[1732121488439,0.0785,3083.9,3082.6,0.41957183]
[1732121488639,0.0785,3083.9,3082.7,1.52342897]
[1732121488859,3.251,3085.5,3082.8,0.36528193]
[1732121488860,0.0785,3084.7,3082.8,0.36528193]
[1732121489067,0.0785,3084.7,3082.9,0.58242593]
[1732121489542,0.0785,3084.7,3083.1,0.55]
[1732121489833,0.0785,3084.7,3083.3,0.55]
[1732121490031,0.0785,3084.7,3083.5,0.55]
[1732121490215,0.0785,3084.7,3083.6,0.03242009]
[1732121490430,0.0785,3084.7,3083.8,3.0]
[1732121490591,0.0785,3084.7,3083.5,0.03242009]
[1732121490793,0.0785,3084.7,3083.8,3.0]
[1732121490993,0.0785,3084.7,3083.5,0.03242009]
[1732121491502,0.0785,3084.7,3083.8,3.0]
[1732121491841,0.0785,3084.7,3083.6,3.0]
[1732121492293,0.0785,3084.7,3082.9,0.55]
[1732121492497,0.0785,3084.7,3083.4,3.0]
[1732121493020,0.0785,3084.7,3083.4,3.03242287]
[1732121493199,0.0785,3084.7,3083.4,3.0]
[1732121493591,0.0785,3084.7,3083.8,3.0]
[1732121493809,0.0785,3084.7,3083.9,3.03242138]
[1732121493991,0.0785,3084.7,3084.0,0.30324214]
[1732121494433,0.0785,3084.7,3083.9,3.03241792]
[1732121494626,0.0785,3084.7,3083.9,0.03241792]
[1732121495004,0.0785,3084.7,3084.1,3.0]
[1732121495692,0.0785,3084.7,3083.9,0.03241822]
[1732121495900,0.0785,3084.7,3084.1,3.0]
[1732121496309,0.0785,3084.7,3084.1,3.30324182]
[1732121496704,0.0785,3084.7,3083.9,0.03241822]
[1732121496918,0.0785,3084.7,3083.4,0.9266]
[1732121497121,0.0785,3084.7,3083.0,0.898]
[1732121497296,0.0785,3084.7,3083.1,0.03242416]
[1732121499223,0.0785,3084.7,3083.0,0.93042561]
[1732121499439,0.11540242,3084.6,3083.0,1.34999744]
[1732121499749,0.0798,3084.5,3083.1,0.40939442]
[1732121499896,0.0798,3084.3,3083.1,0.40939442]
[1732121500096,0.0798,3084.3,3083.2,0.03242695]
[1732121500729,0.0798,3084.3,3083.3,0.55]
[1732121501647,0.0798,3084.3,3083.0,0.898]
[1732121501967,0.0798,3084.3,3083.0,0.93915186]
[1732121502432,0.0798,3084.1,3082.5,0.16603154]
[1732121502628,0.0798,3083.9,3082.6,0.03243109]
[1732121502837,0.0798,3083.7,3082.4,0.03243109]
[1732121503007,0.0798,3083.5,3082.3,0.03243517]
[1732121503206,0.0798,3083.5,3082.1,0.03243508]
[1732121503656,0.0798,3083.2,3081.5,0.8844]
[1732121503806,0.0798,3083.0,3081.4,0.16614887]
[1732121504002,0.0798,3082.8,3081.2,5.34]
[1732121504242,0.0798,3082.6,3081.3,0.57595718]
[1732121505120,0.04055717,3082.5,3081.2,5.34]
[1732121505321,0.04055717,3082.5,3080.2,0.01]
[1732121505322,0.0798,3082.4,3080.3,1.30397183]
[1732121505626,0.0798,3082.2,3080.4,0.41957183]
[1732121505833,3.28490602,3082.3,3080.4,0.41957183]
[1732121505834,0.0798,3082.0,3080.4,0.41957183]
[1732121506039,0.0798,3081.8,3080.3,1.04811833]
[1732121506425,0.0798,3081.8,3080.4,0.36528193]
[1732121506631,0.0798,3081.8,3080.4,0.41957183]
[1732121506860,0.0798,3081.8,3080.5,0.55]
[1732121507018,0.0798,3081.8,3080.6,0.41957183]